Cogmind - Beta 16 @@@ ROGUE MODE // 2025.10.21 @ 22:05:06 Player: WetterLettuce Result: Destroyed by S-43 Plague with Heavy Machine Gun Performance ------------- Evolutions (7) 3500 Regions Visited (13) 2600 Robots Destroyed (37) 185 Value Destroyed (983) 983 Prototype IDs (8) 160 Alien Tech Used (0) 0 Bonus (1000) 1000 TOTAL SCORE: 8428 Bonus ------- Entered DSFs 1000 Cogmind --------- Core Integrity 0/1300 Matter 106/300 Energy 100/100 System Corruption 16% Temperature Cool (0) Movement Flying (45) Location -3/Research Parts ------- > --- POWER (1) -------- (None) > --- PROPULSION (5) --- Field Propulsion Drive > --- UTILITY (12) ----- Advanced Signal Interpreter Advanced Signal Interpreter System Shield > --- WEAPON (3) ------- (None) > --- INVENTORY (5) ---- Micro Antimatter Reactor Advanced ECM Suite Splice Drone Bay (6/6) Katana Power Sword Peak State ------------ > --- POWER ------------ (None) > --- PROPULSION ------- Improved Thunder Leg Improved Gyrokinetic Inverter > --- UTILITY ---------- Advanced Sensor Array Advanced Signal Interpreter Advanced Signal Interpreter Advanced Targeting Computer Improved Melee Analysis Suite Improved Melee Analysis Suite Improved Melee Analysis Suite Advanced Kinecellerator Hacking Suite > --- WEAPON ----------- Force Lance > --- INVENTORY -------- Advanced ECM Suite Splice Drone Bay Katana Power Sword [Rating: 65] Favorites ----------- Power Ion Engine Engine Ion Engine Power Core Light Nuclear Core Reactor Micro Antimatter Reactor Propulsion Flight Unit Treads Light Treads Leg Improved Thunder Leg Hover Unit Improved Airjet Flight Unit Flight Unit Utility Improved Melee Analysis Suite Device Improved Heat Sink Storage Small Storage Unit Processor Improved Melee Analysis Suite Hackware Hacking Suite Weapon Katana Energy Gun Medium Laser Ballistic Gun Assault Rifle Launcher Grenade Launcher Special Weapon Remote Datajack Slashing Weapon Katana Piercing Weapon Force Lance Build | -11 -10 -9 -9 -8 -7 -6 -6 -6 -6 -5 -4 -4 -3 ------- Run | Yrd Mat Mat Min Mat Fac Fac Was Fac DSF Fac Fac DSF Res Slots Evolved 14 | . . 2 . 2 2 2 . . . 2 2 . 2 Power . | . . . . . . . . . . . . . . Propulsion 3 | . . . . 2 . . . . . . 1 . . Utility 10 | . . 1 . . 2 2 . . . 2 1 . 2 Weapon 1 | . . 1 . . . . . . . . . . . Parts Attached 83 | 6 1 13 5 5 12 8 5 . 3 8 1 3 13 Power 11 | 1 . 2 1 1 2 2 . . . 1 . . 1 Engine 6 | 1 . 2 1 1 . 1 . . . . . . . Core 4 | . . . . . 2 1 . . . 1 . . . Reactor 1 | . . . . . . . . . . . . . 1 Propulsion 31 | 2 . 5 4 2 5 1 4 . . 1 . . 7 Treads 4 | 2 . 2 . . . . . . . . . . . Leg 4 | . . 2 . . . . 1 . . . . . 1 Wheel . | . . . . . . . . . . . . . . Hover 8 | . . . . 1 4 1 . . . . . . 2 Flight 15 | . . 1 4 1 1 . 3 . . 1 . . 4 Utility 30 | 1 1 2 . 2 5 4 1 . 3 5 1 1 4 Device 7 | . . 1 . . 2 2 . . . . . . 2 Storage 1 | 1 . . . . . . . . . . . . . Processor 18 | . 1 1 . 2 1 2 1 . 3 5 . 1 1 Hackware 4 | . . . . . 2 . . . . . 1 . 1 Protection . | . . . . . . . . . . . . . . Artifact . | . . . . . . . . . . . . . . Weapon 11 | 2 . 4 . . . 1 . . . 1 . 2 1 Energy Gun 2 | 1 . 1 . . . . . . . . . . . Energy Cannon . | . . . . . . . . . . . . . . Ballistic Gun 2 | 1 . 1 . . . . . . . . . . . Ballistic Cannon . | . . . . . . . . . . . . . . Launcher 1 | . . 1 . . . . . . . . . . . Special Weapon 1 | . . . . . . 1 . . . . . . . Impact Weapon . | . . . . . . . . . . . . . . Slashing Weapon 2 | . . 1 . . . . . . . 1 . . . Piercing Weapon 3 | . . . . . . . . . . . . 2 1 Special Melee Weapon . | . . . . . . . . . . . . . . Unidentified Prototypes 8 | . . 1 . 1 1 1 3 . . . . . 1 Parts Lost 30 | . . 3 1 . 5 . 3 . 1 . . 4 13 Power 3 | . . 1 . . 1 . . . . . . 1 . Propulsion 15 | . . . 1 . 3 . 2 . 1 . . 2 6 Utility 8 | . . . . . 1 . 1 . . . . . 6 Weapon 4 | . . 2 . . . . . . . . . 1 1 Highest Loss Streak 7 | . . 2 1 . 4 . 3 . 1 . . 4 7 To Critical Strikes . | . . . . . . . . . . . . . . Average Backups 4 | . 4 7 4 4 4 4 4 4 4 3 4 4 4 Power . | . 1 1 . . . . . . . . . . . Propulsion . | . . 1 1 . . 1 . . . . . . . Utility 1 | . 1 2 . 3 2 1 2 2 3 2 3 3 2 Weapon 1 | . 1 1 2 1 1 1 1 1 1 1 1 1 2 Tool/Special . | . . . . . . . . . . . . . . Unused Backups 11 | . . 3 4 1 1 . 1 . 1 . . . . Power 1 | . . . 1 . . . . . . . . . . Propulsion 2 | . . 1 1 . . . . . . . . . . Utility 5 | . . 2 1 . 1 . . . 1 . . . . Weapon 3 | . . . 1 1 . . 1 . . . . . . Tool/Special . | . . . . . . . . . . . . . . Average Slot Usage (%) 71 | . 94 94 79 77 78 87 72 40 36 38 49 43 37 Engine 5 | . 14 6 11 9 2 3 5 . . . . . . Treads 5 | . 28 13 . . . . . . . . . . . Leg 1 | . . 8 1 . . . . . . . . . 1 Hover 5 | . . . . 5 11 25 8 . . . . . 2 Flight 8 | . . . 20 27 16 . 11 13 8 9 10 6 2 Device 5 | . . 9 9 9 7 13 6 . . . . . 1 Storage 3 | . 14 11 1 . . . . . . . . . . Processor 18 | . 9 12 22 18 22 24 28 20 23 22 26 26 18 Hackware 2 | . . . . . 6 6 6 6 4 . 2 5 5 Energy Gun 4 | . 14 19 2 . . . . . . . . . . Ballistic Gun 3 | . 14 11 . . . . . . . . . . . Slashing Weapon 3 | . . 1 9 9 5 6 1 . . 3 5 2 . Peak Build Rating 65 | 6 8 15 14 25 44 62 62 30 38 55 57 57 65 Average Rating 28 | 4 7 13 12 21 34 55 46 30 27 41 56 45 44 On Entrance 27 | . 6 8 15 14 25 41 62 30 30 10 55 57 25 Avg Prop Armor Cover (%) 11 | . . . . 9 7 6 9 . 12 . . . 20 Naked Turns 1 | . . . . . . . . . 1 . . . . Heaviest Build 20 | 14 14 20 16 8 11 18 10 . . 8 8 8 16 Greatest Support 40 | 40 40 40 23 12 27 37 13 12 17 23 20 20 30 Greatest Overweight (x) 3 | 1 . . 3 . 1 . . . . . . 1 1 Average Overweight (x) . | . . . . . . . . . . . . . . Largest Inventory Capacity 8 | 8 8 8 8 5 5 5 5 5 5 5 5 5 5 Average Capacity 5 | 7 8 8 5 5 5 5 5 5 5 5 5 5 5 Most Carried 8 | 2 8 8 8 5 5 5 5 4 5 5 5 5 5 Average Carried 4 | . 4 7 4 4 4 4 4 4 4 3 4 4 4 Final Capacity 8 | 8 8 8 5 5 5 5 5 5 5 5 5 5 5 Final Carried 8 | 2 8 6 5 5 5 5 4 4 5 5 4 5 5 Class Distribution -------------------- 51% | Mutant 23% | Scavenger-Mutant 11% | Scavenger-Gunner 6% | Hacker-Mutant 3% | Ninja Dominant Class ---------------- Mutant | -10/Materials Scavenger-Gunner | -9/Materials Scavenger-Mutant | -9/Mines Scavenger-Mutant | -8/Materials Mutant | -7/Factory Mutant | -6/Factory Mutant | -6/Waste Mutant | -6/Factory Mutant | -6/DSF Mutant | -5/Factory Mutant | -4/Factory Mutant | -4/DSF Mutant | -3/Research Resources | -11 -10 -9 -9 -8 -7 -6 -6 -6 -6 -5 -4 -4 -3 ----------- Run | Yrd Mat Mat Min Mat Fac Fac Was Fac DSF Fac Fac DSF Res Matter Collected 1041 | 210 126 238 105 50 110 . . . 7 52 . 30 113 Remotely . | . . . . . . . . . . . . . . Salvage Created 981 | . 268 358 48 160 95 . . . . 52 . . . Parts 77 | . 13 34 14 8 4 . . . . 4 . . . Haulers Intercepted . | . . . . . . . . . . . . . . Recyclers Shooed 2 | . . . . . . . . . . . . . 2 Parts Field Recycled . | . . . . . . . . . . . . . . Retrieved Matter . | . . . . . . . . . . . . . . Parts Self-Destructed . | . . . . . . . . . . . . . . Prevented . | . . . . . . . . . . . . . . Parts Restored . | . . . . . . . . . . . . . . Kills | -11 -10 -9 -9 -8 -7 -6 -6 -6 -6 -5 -4 -4 -3 ------- Run | Yrd Mat Mat Min Mat Fac Fac Was Fac DSF Fac Fac DSF Res Combat Hostiles Destroyed 28 | . 6 13 6 1 2 . . . . . . . . Melee 5 | . . 1 2 1 1 . . . . . . . . Guns 13 | . 6 7 . . . . . . . . . . . AOE 10 | . . 5 4 . 1 . . . . . . . . Classes Destroyed 7 | . 1 4 . 1 . . . . . 1 . . . Builder 1 | . . . . . . . . . . 1 . . . Operator 1 | . . . . 1 . . . . . . . . . Watcher 7 | . . 2 . 3 1 . . . . 1 . . . Swarmer 14 | . . 7 6 . 1 . . . . . . . . Grunt 10 | . 6 3 . . 1 . . . . . . . . Duelist 1 | . . 1 . . . . . . . . . . . Sentry 3 | . . 2 . 1 . . . . . . . . . Best Kill Streak 9 | . 4 9 4 3 1 . . . . 1 . . . Combat Bots Only 8 | . 4 8 4 1 1 . . . . . . . . Max Kills in Single Turn 5 | . 1 5 2 1 1 . . . . 1 . . . Gunslinging . | . . . . . . . . . . . . . . Exploded 4 | . . 4 2 . 1 . . . . . . . . Melee 1 | . . 1 1 1 1 . . . . . . . . Uniques/NPCs Destroyed . | . . . . . . . . . . . . . . Combat | -11 -10 -9 -9 -8 -7 -6 -6 -6 -6 -5 -4 -4 -3 -------- Run | Yrd Mat Mat Min Mat Fac Fac Was Fac DSF Fac Fac DSF Res Hostile Shots Fired 476 | . 27 64 28 14 45 . 3 . 49 12 . 33 201 Missed 205 | . 10 22 14 9 12 . . . 15 5 . 16 102 Hits 271 | . 17 42 14 5 33 . 3 . 34 7 . 17 99 Melee 29 | . . 5 . . . . 3 . 18 . . 3 . Projectile 242 | . 17 37 14 5 33 . . . 16 7 . 14 99 Critical Strikes 25 | . . 2 . 1 1 . 2 . 11 . . 3 5 Damage Taken 4891 | . 209 551 125 71 506 . 128 . 509 132 . 387 2273 Core 2583 | . 21 17 39 19 243 . 128 . 494 75 . 224 1323 Absorbed by Shields 92 | . . . . . . . . . 92 . . . . Core Remaining (%) 79 | 100 91 . 86 96 65 . . . 26 92 . 80 . Volleys Fired 42 | . 22 18 2 . . . . . . . . . . Largest 3 | . 2 3 1 . . . . . . . . . . Hottest 113 | . 70 113 30 . . . . . . . . . . Shots Fired 97 | . 44 51 2 . . . . . . . . . . Gun 92 | . 44 48 . . . . . . . . . . . Cannon . | . . . . . . . . . . . . . . Launcher 5 | . . 3 2 . . . . . . . . . . Special . | . . . . . . . . . . . . . . Kinetic 43 | . 22 21 . . . . . . . . . . . Thermal 49 | . 22 27 . . . . . . . . . . . Explosive 5 | . . 3 2 . . . . . . . . . . Electromagnetic . | . . . . . . . . . . . . . . Robot Hit Streak 15 | . 15 11 1 . . . . . . . . . . Robot Miss Streak 5 | . 5 3 1 . . . . . . . . . . Penetration Max . | . . . . . . . . . . . . . . Secondary Targets . | . . . . . . . . . . . . . . Shots Hit Robots 85 | . 30 32 6 8 7 . . . . 2 . . . Core Hits 48 | . 12 20 8 5 2 . . . . 1 . . . Critical Kills . | . . . . . . . . . . . . . . Critical Parts Destroyed . | . . . . . . . . . . . . . . Critical Strikes 4 | . 1 1 1 1 . . . . . . . . . Burn 2 | . 1 1 . . . . . . . . . . . Sever 2 | . . . 1 1 . . . . . . . . . Melee Attacks 54 | . . 3 10 12 15 7 . . . 6 . . 1 Impact . | . . . . . . . . . . . . . . Slashing 53 | . . 3 10 12 15 7 . . . 6 . . . Piercing 1 | . . . . . . . . . . . . . 1 Sneak Attacks 2 | . . . 1 . . . . . . 1 . . . Combat Hostiles 1 | . . . 1 . . . . . . . . . . Follow-up Attacks . | . . . . . . . . . . . . . . Damage Inflicted 2182 | . 376 692 380 321 248 . . . . 146 . 5 14 Guns 776 | . 376 400 . . . . . . . . . . . Cannons . | . . . . . . . . . . . . . . Explosions 415 | . . 226 189 . . . . . . . . . . Melee 972 | . . 66 191 321 248 . . . . 146 . . . Ramming 19 | . . . . . . . . . . . . 5 14 Kinetic 353 | . 174 179 . . . . . . . . . . . Thermal 423 | . 202 221 . . . . . . . . . . . Explosive 415 | . . 226 189 . . . . . . . . . . Electromagnetic . | . . . . . . . . . . . . . . Impact . | . . . . . . . . . . . . . . Slashing 972 | . . 66 191 321 248 . . . . 146 . . . Piercing . | . . . . . . . . . . . . . . Highest Corruption 16 | . . . . . . . . . 1 1 . . 16 Average Corruption 9 | . . . . . . . . . 1 1 . . 10 Corruption Purged . | . . . . . . . . . . . . . . Corruption Blocked . | . . . . . . . . . . . . . . Effects 13 | . . . . . . . . . . 1 . . 12 Message Errors 1 | . . . . . . . . . . . . . 1 Matter Fused 2 | . . . . . . . . . . . . . 2 Heat Flow Errors 1 | . . . . . . . . . . . . . 1 Energy Discharges 2 | . . . . . . . . . . . . . 2 Parts Rejected 1 | . . . . . . . . . . 1 . . . Data Loss (minor) 1 | . . . . . . . . . . . . . 1 Alerts 1 | . . . . . . . . . . . . . 1 Misdirections 4 | . . . . . . . . . . . . . 4 Overload Shots . | . . . . . . . . . . . . . . Overflow Damage 91 | . . . 10 11 . . . . . 70 . . . Projectiles . | . . . . . . . . . . . . . . Explosions 10 | . . . 10 . . . . . . . . . . Melee 81 | . . . . 11 . . . . . 70 . . . Knockbacks . | . . . . . . . . . . . . . . Impact . | . . . . . . . . . . . . . . Kinetic . | . . . . . . . . . . . . . . Secondary . | . . . . . . . . . . . . . . Self-Inflicted Damage 27 | . . . 19 . . . . . . . . 2 6 Shots 1 | . . . 1 . . . . . . . . . . Rammed 4 | . . . . . . . . . . . . 1 3 Targets Rammed 4 | . . . . . . . . . . . . 1 3 Kicked . | . . . . . . . . . . . . . . Crushed . | . . . . . . . . . . . . . . Highest Temperature 335 | . 114 335 . . . . . . . 3 . . 168 Average Temperature 62 | . 40 132 . . . . . . . 3 . . 87 Received Heat Transfer 610 | . 114 156 . . 72 . . . . 63 . . 205 Siege Activations . | . . . . . . . . . . . . . . Martial Activations . | . . . . . . . . . . . . . . Shielding Activations . | . . . . . . . . . . . . . . Robots Disrupted . | . . . . . . . . . . . . . . Combat Hostiles . | . . . . . . . . . . . . . . Robots Corrupted . | . . . . . . . . . . . . . . Combat Hostiles . | . . . . . . . . . . . . . . Parts Fried . | . . . . . . . . . . . . . . Impact Corruptions . | . . . . . . . . . . . . . . Robots Melted . | . . . . . . . . . . . . . . Combat Hostiles . | . . . . . . . . . . . . . . Parts Melted 2 | . 1 1 . . . . . . . . . . . Heat Transferred 1346 | . 666 680 . . . . . . . . . . . Parts Sabotaged . | . . . . . . . . . . . . . . Parts Stolen . | . . . . . . . . . . . . . . Parts Stripped . | . . . . . . . . . . . . . . Power Chain Reactions . | . . . . . . . . . . . . . . Alert | -11 -10 -9 -9 -8 -7 -6 -6 -6 -6 -5 -4 -4 -3 ------- Run | Yrd Mat Mat Min Mat Fac Fac Was Fac DSF Fac Fac DSF Res Maximum Alert Level 1 | . . 1 . . . . . . . . . . 1 Low Security (%) 94 | 100 100 84 100 100 100 100 100 100 100 100 100 100 78 Level 1 5 | . . 15 . . . . . . . . . . 21 Level 2 . | . . . . . . . . . . . . . . Level 3 . | . . . . . . . . . . . . . . Level 4 . | . . . . . . . . . . . . . . Level 5 . | . . . . . . . . . . . . . . High Security . | . . . . . . . . . . . . . . Max Security . | . . . . . . . . . . . . . . Peak Influence 385 | . 104 211 183 78 71 92 32 . 15 57 14 15 385 Initial 61 | . . 32 61 41 27 49 32 . . 7 14 9 2 Average 69 | . 35 138 148 57 24 50 19 . 6 25 14 2 91 Influence Increases 1841 | . 158 346 187 99 292 152 . . 15 97 . 15 480 Destroy 0b10 Robot/C 560 | . 120 260 120 20 40 . . . . . . . . Destroy 0b10 Robot/NC 45 | . . 10 . 20 5 . . . . 10 . . . Destroy Leader 114 | . 20 54 10 16 12 . . . . 2 . . . Successful Hack 173 | . 18 5 . 13 84 32 . . . 21 . . . Disable Machine 150 | . . . 15 . 45 75 . . . . . . 15 Destroy Structure 34 | . . 17 12 . 1 . . . . 4 . . . Partial Spotted 45 | . . . . 15 15 . . . . 15 . . . Lose Combat Pursuer 720 | . . . 30 15 90 45 . . 15 45 . 15 465 Influence Decreases 1507 | . 80 266 237 147 251 161 92 . . 82 16 24 151 Entered New Map 387 | . . 46 97 67 33 52 60 . . 8 16 5 3 Time Decay 941 | . 80 190 130 80 173 109 12 . . 74 . . 93 Lost Part 179 | . . 30 10 . 45 . 20 . . . . 19 55 Squads Dispatched 14 | . 1 1 . . 3 1 . . 1 2 . 1 4 Investigation 3 | . . . . . . . . . . 1 . . 2 Extermination 4 | . . . . . 2 . . . . . . . 2 Reinforcement 7 | . 1 1 . . 1 1 . . 1 1 . 1 . Assault . | . . . . . . . . . . . . . . Garrison . | . . . . . . . . . . . . . . Intercept . | . . . . . . . . . . . . . . Searches Triggered . | . . . . . . . . . . . . . . Construction Impeded . | . . . . . . . . . . . . . . Haulers Reinforced . | . . . . . . . . . . . . . . Active Scanning Responses . | . . . . . . . . . . . . . . Cargo Convoy Interrupts . | . . . . . . . . . . . . . . Stealth | -11 -10 -9 -9 -8 -7 -6 -6 -6 -6 -5 -4 -4 -3 --------- Run | Yrd Mat Mat Min Mat Fac Fac Was Fac DSF Fac Fac DSF Res Distress Signals 5 | . 1 1 . . 1 . . . . 1 . . 1 Communications Jammed . | . . . . . . . . . . . . . . Distress Signals . | . . . . . . . . . . . . . . Times Spotted 149 | . 10 21 8 11 22 5 6 . 5 14 . 6 41 Peak Tracking Total 20 | . 4 9 3 5 6 3 6 . 4 7 . 4 20 Tactical Retreats 18 | . . . 2 1 5 1 . . 1 1 . 1 6 ECM-based Alert Blocks 4 | . . . . . 4 . . . . . . . . Traps | -11 -10 -9 -9 -8 -7 -6 -6 -6 -6 -5 -4 -4 -3 ------- Run | Yrd Mat Mat Min Mat Fac Fac Was Fac DSF Fac Fac DSF Res Traps Triggered 7 | . 1 . . . . 1 . . 3 . . 1 1 Indirectly . | . . . . . . . . . . . . . . Trap Hack Attempts . | . . . . . . . . . . . . . . Triggered . | . . . . . . . . . . . . . . Disarmed . | . . . . . . . . . . . . . . Reprogrammed . | . . . . . . . . . . . . . . Reused . | . . . . . . . . . . . . . . Traps Extracted . | . . . . . . . . . . . . . . Installed . | . . . . . . . . . . . . . . Triggered . | . . . . . . . . . . . . . . Machines | -11 -10 -9 -9 -8 -7 -6 -6 -6 -6 -5 -4 -4 -3 ---------- Run | Yrd Mat Mat Min Mat Fac Fac Was Fac DSF Fac Fac DSF Res Machines Disabled 10 | . . . 1 . 3 5 . . . . . . 1 Max in Single Turn 1 | . . . 1 . 1 1 . . . . . . 1 Machines Repaired . | . . . . . . . . . . . . . . Machines Dismantled . | . . . . . . . . . . . . . . Machines Sabotaged . | . . . . . . . . . . . . . . Overloaded Fab Kills . | . . . . . . . . . . . . . . Hacking | -11 -10 -9 -9 -8 -7 -6 -6 -6 -6 -5 -4 -4 -3 --------- Run | Yrd Mat Mat Min Mat Fac Fac Was Fac DSF Fac Fac DSF Res Machines Accessed 29 | . 4 1 1 3 6 6 . 1 . 5 1 . 1 Terminals 26 | . 3 1 . 3 5 6 . 1 . 5 1 . 1 Fabricators . | . . . . . . . . . . . . . . Repair Stations 1 | . 1 . . . . . . . . . . . . Recycling Units 1 | . . . . . 1 . . . . . . . . Scanalyzers . | . . . . . . . . . . . . . . Garrison Access . | . . . . . . . . . . . . . . Total Hacks 66 | . 11 3 1 10 19 9 . 2 . 7 1 . 3 Successful 31 | . 4 1 1 5 12 3 . 1 . 3 1 . . Failed 35 | . 7 2 . 5 7 6 . 1 . 4 . . 3 Catastrophic 6 | . 1 . . 1 2 1 . . . 1 . . . Database Lockouts . | . . . . . . . . . . . . . . Manual 39 | . 9 1 . 5 10 8 . . . 6 . . . Terminals 61 | . 10 3 . 10 16 9 . 2 . 7 1 . 3 Fabricators . | . . . . . . . . . . . . . . Repair Stations 1 | . 1 . . . . . . . . . . . . Recycling Units 3 | . . . . . 3 . . . . . . . . Scanalyzers . | . . . . . . . . . . . . . . Garrison Access . | . . . . . . . . . . . . . . Terminal Hacks 10 | . . . 1 2 4 . . 1 . 1 1 . . Robot Analysis 1 | . . . . . 1 . . . . . . . . Open Door 1 | . . . 1 . . . . . . . . . . Open DSF 3 | . . . . . . . . 1 . 1 1 . . Level Access Points 1 | . . . . . 1 . . . . . . . . Branch Access Points 1 | . . . . . 1 . . . . . . . . Alert Level 1 | . . . . 1 . . . . . . . . . Dispatch Records 1 | . . . . 1 . . . . . . . . . Hauler Manifests 1 | . . . . . 1 . . . . . . . . Fabricator Hacks . | . . . . . . . . . . . . . . Repair Station Hacks . | . . . . . . . . . . . . . . Recycling Unit Hacks 1 | . . . . . 1 . . . . . . . . Report Inventory 1 | . . . . . 1 . . . . . . . . Scanalyzer . | . . . . . . . . . . . . . . Garrison Access Hacks . | . . . . . . . . . . . . . . Unauthorized Hacks 20 | . 4 1 . 3 7 3 . . . 2 . . . Terminals 17 | . 3 1 . 3 5 3 . . . 2 . . . Track 1 | . . . . . 1 . . . . . . . . Assimilate 2 | . . . . . . . . . . 2 . . . Botnet 14 | . 3 1 . 3 4 3 . . . . . . . Fabricators . | . . . . . . . . . . . . . . Repair Stations 1 | . 1 . . . . . . . . . . . . Mechanics 1 | . 1 . . . . . . . . . . . . Recycling Units 2 | . . . . . 2 . . . . . . . . Monitor 1 | . . . . . 1 . . . . . . . . Recyclers 1 | . . . . . 1 . . . . . . . . Scanalyzers . | . . . . . . . . . . . . . . Garrison Access . | . . . . . . . . . . . . . . Data Cores Recovered 1 | . . . . 1 . . . . . . . . . Used . | . . . . . . . . . . . . . . Hacking Detections 25 | . 4 1 . 3 4 6 . 1 . 5 . . 1 Full Trace Events 2 | . . . . . . . . . . 1 . . 1 Feedback Events 1 | . . . . . . . . . . 1 . . . Corruption 1 | . . . . . . . . . . 1 . . . Feedback Blocked . | . . . . . . . . . . . . . . Robot Schematics Acquired . | . . . . . . . . . . . . . . Robots Built . | . . . . . . . . . . . . . . Authchips . | . . . . . . . . . . . . . . Time . | . . . . . . . . . . . . . . Total Robot Build Rating . | . . . . . . . . . . . . . . Part Schematics Acquired . | . . . . . . . . . . . . . . Parts Built . | . . . . . . . . . . . . . . Authchips . | . . . . . . . . . . . . . . Time . | . . . . . . . . . . . . . . Total Part Build Rating . | . . . . . . . . . . . . . . Part Studies Acquired . | . . . . . . . . . . . . . . Parts Repaired . | . . . . . . . . . . . . . . Time . | . . . . . . . . . . . . . . Parts Recycled . | . . . . . . . . . . . . . . Recycled Matter . | . . . . . . . . . . . . . . Retrieved Matter . | . . . . . . . . . . . . . . Retrieved Components . | . . . . . . . . . . . . . . Parts Scanalyzed . | . . . . . . . . . . . . . . Part Schematics Acquired . | . . . . . . . . . . . . . . Parts Damaged . | . . . . . . . . . . . . . . Bothacking | -11 -10 -9 -9 -8 -7 -6 -6 -6 -6 -5 -4 -4 -3 ------------ Run | Yrd Mat Mat Min Mat Fac Fac Was Fac DSF Fac Fac DSF Res Used RIF Installer . | . . . . . . . . . . . . . . Robots Hacked . | . . . . . . . . . . . . . . Non-combat . | . . . . . . . . . . . . . . Combat . | . . . . . . . . . . . . . . Robot Hacks Applied . | . . . . . . . . . . . . . . Relay Couplers Released . | . . . . . . . . . . . . . . Fabnet Peak Effective % . | . . . . . . . . . . . . . . Robots Rewired . | . . . . . . . . . . . . . . Allies Hacked . | . . . . . . . . . . . . . . Hacks Repelled . | . . . . . . . . . . . . . . Allies | -11 -10 -9 -9 -8 -7 -6 -6 -6 -6 -5 -4 -4 -3 -------- Run | Yrd Mat Mat Min Mat Fac Fac Was Fac DSF Fac Fac DSF Res Total Allies 4 | . . . 3 . . . . . . 1 . . . Largest Group 3 | . . . 3 . . . . . . 1 . . . Highest-Rated Group 40 | . . . 40 . . . . . . 26 . . . Highest-Rated Ally 26 | . . . 16 . . . . . . 26 . . . Total Orders 1 | . . . . . . 1 . . . . . . . RETURN 1 | . . . . . . 1 . . . . . . . Ally Attacks . | . . . . . . . . . . . . . . Total Damage . | . . . . . . . . . . . . . . Kills . | . . . . . . . . . . . . . . Allies Corrupted . | . . . . . . . . . . . . . . Allies Melted . | . . . . . . . . . . . . . . Intel | -11 -10 -9 -9 -8 -7 -6 -6 -6 -6 -5 -4 -4 -3 ------- Run | Yrd Mat Mat Min Mat Fac Fac Was Fac DSF Fac Fac DSF Res Active Infowar (turns) 625 | . . . . . 75 223 52 12 62 150 8 33 10 Optics 404 | . . . . . . 87 52 12 62 150 8 33 . Sensors 319 | . . . . . 47 223 39 . . . . . 10 ECM 28 | . . . . . 28 . . . . . . . . Robot Analysis Total 1 | . . . . . 1 . . . . . . . . Derelict Logs Recovered 1 | . . . 1 . . . . . . . . . . Drone Launches 1 | . . . . . . 1 . . . . . . . Drone Recoveries 1 | . . . . . . 1 . . . . . . . Exploration | -11 -10 -9 -9 -8 -7 -6 -6 -6 -6 -5 -4 -4 -3 ------------- Run | Yrd Mat Mat Min Mat Fac Fac Was Fac DSF Fac Fac DSF Res Turns Passed 2611 | 79 286 390 266 170 403 239 52 12 65 185 8 35 421 Spaces Moved 4021 | 39 126 208 487 374 873 475 113 34 67 411 19 39 756 Core 163 | 3 . . . . . . . . 30 . . 1 129 Treads 265 | 36 126 103 . . . . . . . . . . . Legs 109 | . . 105 4 . . . . . . . . . . Wheels . | . . . . . . . . . . . . . . Hover 998 | . . . . . 299 475 . . . . . . 224 Flight 2486 | . . . 483 374 574 . 113 34 37 411 19 38 403 Fastest Speed 28 | 50 160 120 37 34 31 40 29 34 28 34 37 37 37 Average Speed 50 | 154 160 139 38 34 36 40 33 34 40 37 37 40 51 Slowest Speed 280 | 160 160 160 280 34 117 45 42 34 50 40 37 100 125 Overloaded Moves 30 | . . . . . . . 9 . 12 9 . . . Propulsion Burnouts . | . . . . . . . . . . . . . . Robots Hopped 21 | . . . 4 3 4 . . . . 2 . . 8 Potential Cave-ins 2 | . . . . . 2 . . . . . . . . Cave-ins Triggered . | . . . . . . . . . . . . . . Exploration Rate (%) 34 | 5 21 33 94 35 27 16 80 2 79 17 1 53 26 Regions Visited 13 Branch Regions 1 Pre-discovered Areas . | . . . . . . . . . . . . . . Known Exits Taken 4 | . . . . . 1 . . 1 . 1 1 . . Unknown Exits Taken 5 | 1 1 1 1 1 . . . . . . . . . Scrap Searched 2 | . . . 2 . . . . . . . . . . Spaces Dug 4 | . . . . . 1 . . . . 3 . . . Terrain Destroyed 42 | . . 23 15 . 1 . . . . 3 . . . Melee 4 | . . . . . 1 . . . . 3 . . . Projectile . | . . . . . . . . . . . . . . AOE 38 | . . 23 15 . . . . . . . . . . Terrain Rammed . | . . . . . . . . . . . . . . Walls Destroyed . | . . . . . . . . . . . . . . Machines Disabled . | . . . . . . . . . . . . . . Actions | -11 -10 -9 -9 -8 -7 -6 -6 -6 -6 -5 -4 -4 -3 --------- Run | Yrd Mat Mat Min Mat Fac Fac Was Fac DSF Fac Fac DSF Res Total 4407 | 55 166 264 549 395 927 514 128 33 103 425 19 57 772 Wait 84 | 9 11 6 25 . 19 14 . . . . . . . Move 3971 | 38 125 207 479 367 864 475 112 33 66 407 18 39 741 Hop 18 | . . . 3 3 4 . . . . 1 . . 7 Pick Up 45 | 2 6 7 7 4 5 4 1 . 3 2 . 2 2 Fast Attach 48 | 6 2 1 3 1 6 3 3 . 4 7 . 1 11 Attach 30 | . . 6 4 1 5 5 2 . . 2 1 1 3 Detach 8 | . . . 2 . 1 1 3 . . . . . 1 Swap 20 | . . 8 2 3 2 1 2 . . . . 1 1 Drop 43 | . . 8 12 4 6 4 5 . 2 . . . 2 Fire 42 | . 22 18 2 . . . . . . . . . . Melee 54 | . . 3 10 12 15 7 . . . 6 . . 1 Ram 3 | . . . . . . . . . . . . . 3 Kick . | . . . . . . . . . . . . . . Crush . | . . . . . . . . . . . . . . Escape Stasis 41 | . . . . . . . . . 28 . . 13 . Rewire . | . . . . . . . . . . . . . . Trap . | . . . . . . . . . . . . . . Miscellaneous . | . . . . . . . . . . . . . . Route ------- -11/Scrapyard -10/Materials -9/Materials -9/Mines (discovered 2 exits: *Mat x2) -8/Materials -7/Factory (discovered 6 exits: *Fac x4 / Low x2) -6/Factory -6/Waste -6/Factory -6/DSF -5/Factory -4/Factory -4/DSF -3/Research History --------- Turn | Location | Event 25 | -11/Scrapyard | Discovered new exit (range 15) 80 | -11/Scrapyard | Entered Materials 307 | -10/Materials | Build established: Mutant 327 | -10/Materials | Discovered new exit (range 16) 366 | -10/Materials | Entered another Materials area 366 | -9/Materials | Evolved 2 slots: Utility x1, Weapon x1 516 | -9/Materials | Destroyed 8 combat bots 747 | -9/Materials | Discovered new exit (range 7) 756 | -9/Materials | Entered Mines 853 | -9/Mines | Assisted by bots powering up and referring to "LRC-V3" 866 | -9/Mines | A weapon hastily lodged in a ceiling crevice suddenly fell to the ground 947 | -9/Mines | Learned Materials terminal intel 974 | -9/Mines | Found the Drone Emporium 978 | -9/Mines | Found Prototype Device 1007 | -9/Mines | Discovered new exit (range 15) 1016 | -9/Mines | Build established: Scavenger-Mutant 1019 | -9/Mines | Discovered new exit (range 8) 1022 | -9/Mines | Entered Materials 1022 | -8/Materials | Evolved 2 slots: Propulsion x2 1023 | -8/Materials | Loaded intel: 12 terminal locations 1104 | -8/Materials | Discovered new exit (range 16) 1192 | -8/Materials | Entered Factory 1192 | -7/Factory | Evolved 2 slots: Utility x2 1371 | -7/Factory | Identified exit to Lower Caves 1441 | -7/Factory | Lost 4 parts (3n1u) 1569 | -7/Factory | Identified exit to Factory 1595 | -7/Factory | Entered another Factory area 1595 | -6/Factory | Evolved 2 slots: Utility x2 1596 | -6/Factory | Identified Splice Drone Bay 1678 | -6/Factory | Build established: Mutant 1834 | -6/Factory | Sucked down chute 1834 | -6/Factory | Entered Waste 1846 | -6/Waste | Spotted C-40 Crusher 1848 | -6/Waste | Spotted C-40 Crusher 1854 | -6/Waste | Spotted C-40 Crusher 1865 | -6/Waste | Spotted C-40 Crusher 1866 | -6/Waste | Spotted C-40 Crusher 1868 | -6/Waste | Spotted C-40 Crusher 1871 | -6/Waste | Crushed by Compactor (1 part destroyed, 1 dropped) 1873 | -6/Waste | Crushed by Compactor (1 part destroyed, 2 dropped) 1876 | -6/Waste | Crushed by Compactor (1 part destroyed, 2 dropped) 1883 | -6/Waste | Discovered new exit (range 11) 1886 | -6/Waste | Entered Factory 1898 | -6/Factory | Identified exit to DSF 1898 | -6/Factory | Entered DSF 1907 | -6/DSF | Lost 3 parts (2n1u) 1921 | -6/DSF | Discovered new exit (range 15) 1924 | -6/DSF | Additional patrols routed to DSF 1951 | -6/DSF | Core integrity fell below 50% 1963 | -6/DSF | Entered Factory 1963 | -5/Factory | Evolved 2 slots: Utility x2 2144 | -5/Factory | Discovered new exit (range 12) 2148 | -5/Factory | Identified exit to Factory 2148 | -5/Factory | Entered another Factory area 2148 | -4/Factory | Evolved 2 slots: Propulsion x1, Utility x1 2150 | -4/Factory | Identified exit to DSF 2156 | -4/Factory | Entered DSF 2159 | -4/DSF | Discovered new exit (range 21) 2175 | -4/DSF | Additional patrols routed to DSF 2188 | -4/DSF | Identified exit to Research 2191 | -4/DSF | Entered Research 2191 | -3/Research | Evolved 2 slots: Utility x2 2219 | -3/Research | Lost 4 parts (1p2n1w) 2285 | -3/Research | Found Prototype Device 2285 | -3/Research | Identified Adv. Kinecellerator 2407 | -3/Research | System corruption reached 10% 2434 | -3/Research | Lost 7 parts (2n4u1w) 2451 | -3/Research | Core integrity fell below 50% 2500 | -3/Research | Spotted B-86 Titan 2509 | -3/Research | Core integrity fell below 20% 2528 | -3/Research | Spotted B-86 Titan 2612 | -3/Research | Destroyed by S-43 Plague with Heavy Machine Gun Last Messages --------------- System corrupted: Matter fused (-7). Slug penetrates Door. Penetrated by Slug. Slug penetrates Wall. L,8= ODKNBTLHHP4=OH,19PS= Acquired Enh. Force Lance. ALERT: Potential suspicious activity detected, Programmers report to Research Zone 9P. Acquired Mic. Antimatter Reactor. System corrupted: Matter fused (-10). Triggered Alarm Trap. An alarm sounds. ALERT: Alarm triggered, dispatching investigation squad. System corrupted: Heat flow error (+194). Field Propulsion Array destroyed. Impulse Thruster destroyed. Dropped Enh. Force Lance. Hacking Suite destroyed. Door malfunctions. Map ----- +----------------------------------------------------+ | ???????????????????????????????????????? | | ???????????????????????????????????????? | | ???????????????????????????????????????? | | ???????????????????????????????????????? | | ???????????????????????????????????????? | | ???????????????????????????????????????? | | ???????????????????????????????????????? | | ???????????????????????????????????????? | | ???????????????????????????????????????? | | ???????????????????????????????????????? | | ?????????????????????????????##########? | | ?????????????????????????????# """ ? | | ?????????????????????????????# ""T"" # | | ????????????????????????###### "" "" # | | ????????????????????????# # # | | ????????????????????????# # # | | ????????????????????????# # # | | ????????????????????????# + # | | ????????????????????????# # # | | ?????????????????# ?????# ##########? | | ?????????????????+ ????# # """""??? | | ?????????????????# ???# # """"" ?? | | ?????????????????# ??# /# """"" # | | ?????????????##### ### # # | | ?????????? sss / # | | ?????????? @ # # | | ?????????? # # | | ?????????? # # | | ???????????###+########## ########### | | ????????????????????????# # # | | ????????????????????????# # # | | ????????????????????????# pp + """ ? | | ????????????????????????# # """ ? | | ????????????????????????# # """ ?? | | ????????????????????????# #? ??? | | ????????????????????????# #? ? | | ????????????????????????# #?? # | | ?############+########### #??######## | | #?????????? | | #?????????? | | #?????????? | | #?????????? | | ????####### ###############?????????? | | ??????????# # """""" #??????????? | | ??????????# # ""S""" #??????????? | | ??????????# # """ #??????????? | | ??????????# # #??????????? | | ??????????# + #??????????? | | ??????????# # #??????????? | | ??????????#### # #??????????? | +----------------------------------------------------+ Best States ------------- Heat Dissipation 48 Energy Generation 19 Energy Capacity 265 Matter Stores 300 Matter Capacity 300 Sight Range 22 Robot Scan Range 16 Terrain Scan Density 10 ECM Strength 2 Evasion (%) 63 Targeting Accuracy 8 Melee Accuracy 24 Core Analysis 6 Recoil Reduction 2 Salvage Targeting 2 Offensive Hacking 10 Defensive Hacking 10 Item Schematics ----------------- None Robot Schematics ------------------ None Fabricated ------------ Nothing Repaired ---------- Nothing Studied --------- None Alien Tech Used ----------------- None Achievements -------------- DATA ERROR: Steam Global Achievement% For Emergencies Only Heavy Suspicion Organ Harvest Overwhelming Spot Them First There's More Where That Came From Window Shopping Challenges ------------ None Game ------ Seed PropulsionOpticalMallet Manual? 0 Play Time 00:53:43 Cumulative 86.1 hours Start 2025.10.21 @ 21:12:49 End 2025.10.21 @ 22:05:06 Sessions 1 Manual Loads 0 Difficulty Rogue Special Mode None Game No. 95 Rogue 95 Adventurer 0 Explorer 0 Win Type - Total 1 Types 1/0/0/0/0/0/0/0/0/0 Lore% 66 Gallery% 52 Achievement% 27 Wizard Run 0 Options --------- Layout 1 ASCII 0 Keyboard 0 Movement Mouse Keybinds 0 Fullscreen 2 Font 24/Smallcaps Map View 50x35 Zoom Use 0% Tactical HUD 0 Map Filters NONE Filters NONE Steam 1 RUN: 0be96b52-e540-4541-87eb-70b11b73865d